Workbook

Sheet Model
B1: x.1 Coeffcient | C1: x.2 Coefficient | G1: Unhide perceptual function: Ctrl u
A2: q.i | B2: 1 | C2: 1 | D2: q.i Stability (Max =1) | E2: =IF(1-SQRT(_xlfn.VAR.S(O9:O106)/(_xlfn.VAR.S(K9:K106)+_xlfn.VAR.S(L9:L106)+_xlfn.VAR.S(M9:M106)))<0,0,1-SQRT(_xlfn.VAR.S(O9:O106)/(_xlfn.VAR.S(K9:K106)+_xlfn.VAR.S(L9:L106)+_xlfn.VAR.S(M9:M106)))) -> 0 | G2: Hide perceptual function: Ctrl h
A3: p | B3: -0.5 | C3: 0.3 | D3: p Stability (Max =1) | E3: =1-SQRT(_xlfn.VAR.S(N9:N106)/(_xlfn.VAR.S(K9:K106)+_xlfn.VAR.S(L9:L106)+_xlfn.VAR.S(M9:M106))) -> 0.9358873341
A4: Control System Parameters
A5: r amp | B5: 0 | C5: r freq | D5: 0 | E5: slow | F5: 0.01 | G5: gain | H5: 150
I6: sample | J6: r | K6: x.1 | L6: x.2 | M6: q.o | N6: =CONCATENATE("p = (",B3," * x.1 + ",C3," * x.2)", " + ",M6) -> p = (-0.5 * x.1 + 0.3 * x.2) + q.o | O6: =CONCATENATE("q.i = (",B2," * x.1 + ",C2," * x.2)", " + ",M6) -> q.i = (1 * x.1 + 1 * x.2) + q.o | Q6: p | R6: q.i
I7: 1 | J7: =IF($D$5>0,$B$5*(SIN(2*3.14159*I7/(100/$D$5))+1.1),$B$5) -> 0 | K7: =10*SIN(2*3.14159*I7/(100/3)) -> 1.873811582 | L7: =10*SIN(2*3.14159*I7/(100/6)) -> 3.681242566 | M7: =0 -> 0 | N7: =($B$3*K7+$C$3*L7)+M7 -> 0.1674669789 | O7: =($B$2*K7+$C$2*L7)+M7 -> 5.555054148 | Q7: =ROUNDDOWN(N7,0) -> 0 | R7: =ROUNDDOWN(O7,0) -> 5
I8: 2 | J8: 0 | K8: =10*SIN(2*3.14159*I8/(100/3)) -> 3.681242566 | L8: =10*SIN(2*3.14159*I8/(100/6)) -> 6.845466417 | M8: =M7+$F$5*($H$5*(J8-N7)-M7) -> -0.2512004683 | N8: =($B$3*K8+$C$3*L8)+M8 -> -0.03818182639 | O8: =($B$2*K8+$C$2*L8)+M8 -> 10.27550851 | Q8: =ROUNDDOWN(N8,0) -> 0 | R8: =ROUNDDOWN(O8,0) -> 10
I9: 3 | J9: 0 | K9: 5.358263917 | L9: 9.048266457 | M9: -0.1914157241 | N9: -0.1560677454 | O9: 14.21511465 | Q9: 0 | R9: 14
I10: 4 | J10: 0 | K10: 6.845466417 | L10: 9.980266484 | M10: 0.0446000512 | N10: -0.3840532118 | O10: 16.87033295 | Q10: 0 | R10: 16
I11: 5 | J11: 0 | K11: 8.090165265 | L11: 9.510570083 | M11: 0.6202338684 | N11: -0.5716777389 | O11: 18.22096922 | Q11: 0 | R11: 18
I12: 6 | J12: 0 | K12: 9.048266457 | L12: 7.705144606 | M12: 1.471548138 | N12: -0.7410417086 | O12: 18.2249592 | Q12: 0 | R12: 18
I13: 7 | J13: 0 | K13: 9.68582884 | L13: 4.817556274 | M13: 2.56839522 | N13: -0.829252318 | O13: 17.07178033 | Q13: 0 | R13: 17
I14: 8 | J14: 0 | K14: 9.980266484 | L14: 1.253357609 | M14: 3.786589744 | N14: -0.8275362151 | O14: 15.02021384 | Q14: 0 | R14: 15
I15: 9 | J15: 0 | K15: 9.921148809 | L15: -2.486871113 | M15: 4.99002817 | N15: -0.7166075689 | O15: 12.42430587 | Q15: 0 | R15: 12
I16: 10 | J16: 0 | K16: 9.510570083 | L16: -5.877826761 | M16: 6.015039241 | N16: -0.5035938286 | O16: 9.647782563 | Q16: 0 | R16: 9
I17: 11 | J17: 0 | K17: 8.763075238 | L17: -8.443260486 | M17: 6.710279592 | N17: -0.204236173 | O17: 7.030094343 | Q17: 0 | R17: 7
I18: 12 | J18: 0 | K18: 7.705144606 | L18: -9.822865347 | M18: 6.949531055 | N18: 0.1500991481 | O18: 4.831810315 | Q18: 0 | R18: 4
I19: 13 | J19: 0 | K19: 6.374255846 | L19: -9.822880264 | M19: 6.654887023 | N19: 0.5208950207 | O19: 3.206262604 | Q19: 0 | R19: 3
I20: 14 | J20: 0 | K20: 4.817556274 | L20: -8.443303142 | M20: 5.806995621 | N20: 0.8652265417 | O20: 2.181248753 | Q20: 0 | R20: 2
I21: 15 | J21: 0 | K21: 3.090192657 | L21: -5.877891165 | M21: 4.451085853 | N21: 1.142622174 | O21: 1.663387345 | Q21: 1 | R21: 1
I22: 16 | J22: 0 | K22: 1.253357609 | L22: -2.48694822 | M22: 2.692641732 | N22: 1.319878462 | O22: 1.459051122 | Q22: 1 | R22: 1
I23: 17 | J23: 0 | K23: -0.6278781821 | L23: 1.253278629 | M23: 0.6858976223 | N23: 1.375820302 | O23: 1.31129807 | Q23: 1 | R23: 1
I24: 18 | J24: 0 | K24: -2.486871113 | L24: 4.817486513 | M24: -1.384691807 | N24: 1.303989703 | O24: 0.9459235928 | Q24: 1 | R24: 0
I25: 19 | J25: 0 | K25: -4.257765544 | L25: 7.705093862 | M25: -3.326829444 | N25: 1.113581486 | O25: 0.1204988743 | Q25: 1 | R25: 0
I26: 20 | J26: 0 | K26: -5.877826761 | L26: 9.510545483 | M26: -4.963933379 | N26: 0.8281436461 | O26: -1.331214658 | Q26: 0 | R26: -1
I27: 21 | J27: 0 | K27: -7.289663386 | L27: 9.980271483 | M27: -6.156509515 | N27: 0.4824036232 | O27: -3.465901418 | Q27: 0 | R27: -3
I28: 22 | J28: 0 | K28: -8.443260486 | L28: 9.048300352 | M28: -6.818549854 | N28: 0.1175704944 | O28: -6.213509988 | Q28: 0 | R28: -6
I29: 23 | J29: 0 | K29: -9.297751378 | L29: 6.845524448 | M29: -6.926720098 | N29: -0.224187074 | O29: -9.378947028 | Q29: 0 | R29: -9
I30: 24 | J30: 0 | K30: -9.822865347 | L30: 3.681316583 | M30: -6.521172286 | N30: -0.505344637 | O30: -12.66272105 | Q30: 0 | R30: -12
I31: 25 | J31: 0 | K31: -10 | L31: 7.960769381e-05 | M31: -5.697943607 | N31: -0.6979197249 | O31: -15.697864 | Q31: 0 | R31: -15
I32: 26 | J32: 0 | K32: -9.822880264 | L32: -3.681168549 | M32: -4.594084584 | N32: -0.7869950163 | O32: -18.0981334 | Q32: 0 | R32: -18
I33: 27 | J33: 0 | K33: -9.297780684 | L33: -6.845408385 | M33: -3.367651213 | N33: -0.772383387 | O33: -19.51084028 | Q33: 0 | R33: -19
I34: 28 | J34: 0 | K34: -8.443303142 | L34: -9.048232562 | M34: -2.175399621 | N34: -0.6682178181 | O34: -19.66693532 | Q34: 0 | R34: -19
I35: 29 | J35: 0 | K35: -7.289717881 | L35: -9.980261485 | M35: -1.151318897 | N35: -0.5005384024 | O35: -18.42129826 | Q35: 0 | R35: -18
I36: 30 | J36: 0 | K36: -5.877891165 | L36: -9.510594683 | M36: -0.3889981049 | N36: -0.3032309271 | O36: -15.77748395 | Q36: 0 | R36: -15
I37: 31 | J37: 0 | K37: -4.257837575 | L37: -7.70519535 | M37: 0.06973826676 | N37: -0.1129015507 | O37: -11.89329466 | Q37: 0 | R37: -11
I38: 32 | J38: 0 | K38: -2.48694822 | L38: -4.817626035 | M38: 0.2383932101 | N38: 0.03657950972 | O38: -7.066181044 | Q38: 0 | R38: -7
I39: 33 | J39: =IF($D$5>0,$B$5*(SIN(2*3.14159*I39/(100/$D$5))+1.1),$B$5) -> 0 | K39: -0.6279576327 | L39: -1.253436589 | M39: 0.1811400135 | N39: 0.1190878531 | O39: -1.700254208 | Q39: 0 | R39: -1
I40: 34 | J40: 0 | K40: 1.253278629 | L40: 2.486794006 | M40: =M39+$F$5*($H$5*(J40-N39)-M39) -> 0.0006968337321 | N40: 0.120095721 | O40: 3.740769469 | Q40: 0 | R40: 3
I41: 35 | J41: 0 | K41: 3.090116946 | L41: 5.877762357 | M41: -0.1794537162 | N41: 0.03881651808 | O41: 8.788425587 | Q41: 0 | R41: 8
I42: 36 | J42: 0 | K42: 4.817486513 | L42: 8.44321783 | M42: -0.2358839561 | N42: -0.1116618637 | O42: 13.02482039 | Q42: 0 | R42: 13
I43: 37 | J43: 0 | K43: 6.374194507 | L43: 9.822850429 | M43: -0.06603232094 | N43: -0.3062744454 | O43: 16.13101262 | Q43: 0 | R43: 16
I44: 38 | J44: 0 | K44: 7.705093862 | L44: 9.82289518 | M44: 0.3940396704 | N44: -0.5116387066 | O44: 17.92202871 | Q44: 0 | R44: 17
I45: 39 | J45: 0 | K45: 8.763036886 | L45: 8.443345798 | M45: 1.157557334 | N45: -0.6909573702 | O45: 18.36394002 | Q45: 0 | R45: 18
I46: 40 | J46: 0 | K46: 9.510545483 | L46: 5.877955569 | M46: 2.182417816 | N46: -0.8094682551 | O46: 17.57091887 | Q46: 0 | R46: 17
I47: 41 | J47: 0 | K47: 9.921138831 | L47: 2.487025326 | M47: 3.37479602 | N47: -0.8396657977 | O47: 15.78296018 | Q47: 0 | R47: 15
I48: 42 | J48: 0 | K48: 9.980271483 | L48: -1.253199649 | M48: 4.600546756 | N48: -0.7655488798 | O48: 13.32761859 | Q48: 0 | R48: 13
I49: 43 | J49: 0 | K49: 9.685848637 | L49: -4.817416752 | M49: 5.702864609 | N49: -0.5852847356 | O49: 10.57129649 | Q49: 0 | R49: 10
I50: 44 | J50: 0 | K50: 9.048300352 | L50: -7.705043118 | M50: 6.523763066 | N50: -0.3119000456 | O50: 7.8670203 | Q50: 0 | R50: 7
I51: 45 | J51: 0 | K51: 8.090212057 | L51: -9.510520882 | M51: 6.926375504 | N51: 0.02811321087 | O51: 5.506066678 | Q51: 0 | R51: 5
I52: 46 | J52: 0 | K52: 6.845524448 | L52: -9.980276481 | M52: 6.814941932 | N52: 0.3980967641 | O52: 3.6801899 | Q52: 0 | R52: 3
I53: 47 | J53: 0 | K53: 5.358331132 | L53: -9.048334247 | M53: 6.149647367 | N53: 0.755981527 | O53: 2.459644252 | Q53: 0 | R53: 2
I54: 48 | J54: 0 | K54: 3.681316583 | L54: -6.845582479 | M54: 4.954178603 | N54: 1.059845567 | O54: 1.789912707 | Q54: 1 | R54: 1
I55: 49 | J55: 0 | K55: 1.873889779 | L55: -3.6813906 | M55: 3.314868466 | N55: 1.273506396 | O55: 1.507367645 | Q55: 1 | R55: 1
I56: 50 | J56: 0 | K56: 7.960769381e-05 | L56: -0.0001592153876 | M56: 1.371460187 | N56: 1.371372619 | O56: 1.37138058 | Q56: 1 | R56: 1
I57: 51 | J57: 0 | K57: -1.873733384 | L57: 3.681094531 | M57: -0.6993133428 | N57: 1.341881709 | O57: 1.108047804 | Q57: 1 | R57: 1
I58: 52 | J58: 0 | K58: -3.681168549 | L58: 6.845350353 | M58: -2.705142772 | N58: 1.189046608 | O58: 0.4590390319 | Q58: 1 | R58: 0
I59: 53 | J59: 0 | K59: -5.358196702 | L59: 9.048198665 | M59: -4.461661256 | N59: 0.931896694 | O59: -0.7716592928 | Q59: 0 | R59: 0
I60: 54 | J60: 0 | K60: -6.845408385 | L60: 9.980256486 | M60: -5.814889685 | N60: 0.6018914533 | O60: -2.680041584 | Q60: 0 | R60: -2
I61: 55 | J61: 0 | K61: -8.090118472 | L61: 9.510619282 | M61: -6.659577968 | N61: 0.2386670525 | O61: -5.239077158 | Q61: 0 | R61: -5
I62: 56 | J62: 0 | K62: -9.048232562 | L62: 7.705246093 | M62: -6.950982767 | N62: -0.1152926585 | O62: -8.293969236 | Q62: 0 | R62: -8
I63: 57 | J63: 0 | K63: -9.685809042 | L63: 4.817695795 | M63: -6.708533952 | N63: -0.4203206925 | O63: -11.5766472 | Q63: 0 | R63: -11
I64: 58 | J64: 0 | K64: -9.980261485 | L64: 1.253515569 | M64: -6.010967573 | N64: -0.64478216 | O64: -14.73771349 | Q64: 0 | R64: -14
I65: 59 | J65: 0 | K65: -9.921158786 | L65: -2.486716899 | M65: -4.983684658 | N65: -0.7691203344 | O65: -17.39156034 | Q65: 0 | R65: -17
I66: 60 | J66: 0 | K66: -9.510594683 | L66: -5.877697952 | M66: -3.780167309 | N66: -0.7881793538 | O66: -19.16845994 | Q66: 0 | R66: -19
I67: 61 | J67: 0 | K67: -8.763113589 | L67: -8.443175173 | M67: -2.560096606 | N67: -0.7114923632 | O67: -19.76638537 | Q67: 0 | R67: -19
I68: 62 | J68: 0 | K68: -7.70519535 | L68: -9.822835511 | M68: -1.467257095 | N68: -0.5615100732 | O68: -18.99528796 | Q68: 0 | R68: -18
I69: 63 | J69: 0 | K69: -6.374317184 | L69: -9.822910096 | M69: -0.6103194139 | N69: -0.3700338508 | O69: -16.80754669 | Q69: 0 | R69: -16
I70: 64 | J70: 0 | K70: -4.817626035 | L70: -8.443388452 | M70: -0.04916544365 | N70: -0.1733689621 | O70: -13.31017993 | Q70: 0 | R70: -13
I71: 65 | J71: =IF($D$5>0,$B$5*(SIN(2*3.14159*I71/(100/$D$5))+1.1),$B$5) -> 0 | K71: -3.090268368 | L71: -5.878019972 | M71: 0.211379654 | N71: -0.006892153419 | O71: -8.756908686 | Q71: 0 | R71: -8
I72: 66 | J72: 0 | K72: =10*SIN(2*3.14159*I72/(100/3)) -> -1.253436589 | L72: =10*SIN(2*3.14159*I72/(100/6)) -> -2.487102433 | M72: =M71+$F$5*($H$5*(J72-N71)-M71) -> 0.2196040876 | N72: =($B$3*K72+$C$3*L72)+M72 -> 0.1001916523 | O72: =($B$2*K72+$C$2*L72)+M72 -> -3.520934934 | Q72: =ROUNDDOWN(N72,0) -> 0 | R72: =ROUNDDOWN(O72,0) -> -3
I73: 67 | J73: 0 | K73: 0.6277987314 | L73: 1.253120669 | M73: 0.06712056822 | N73: 0.1291574032 | O73: 1.948039969 | Q73: 0 | R73: 1
I74: 68 | J74: 0 | K74: 2.486794006 | L74: 4.817346991 | M74: -0.1272867423 | N74: 0.07452035169 | O74: 7.176854255 | Q74: 0 | R74: 7
I75: 69 | J75: 0 | K75: 4.257693512 | L75: 7.704992373 | M75: -0.2377944024 | N75: -0.05514344671 | O75: 11.72489148 | Q75: 0 | R75: 11
I76: 70 | J76: 0 | K76: 5.877762357 | L76: 9.51049628 | M76: -0.1527012883 | N76: -0.2384335827 | O76: 15.23555735 | Q76: 0 | R76: 15
I77: 71 | J77: 0 | K77: 7.289608891 | L77: 9.980281478 | M77: 0.2064760987 | N77: -0.4442439033 | O77: 17.47636647 | Q77: 0 | R77: 17
I78: 72 | J78: 0 | K78: 8.44321783 | L78: 9.048368141 | M78: 0.8707771926 | N78: -0.6363212802 | O78: 18.36236316 | Q78: 0 | R78: 18
I79: 73 | J79: 0 | K79: 9.297722072 | L79: 6.845640509 | M79: 1.816551341 | N79: -0.7786175424 | O79: 17.95991392 | Q79: 0 | R79: 17
I80: 74 | J80: 0 | K80: 9.822850429 | L80: 3.681464617 | M80: 2.966312141 | N80: -0.8406736885 | O80: 16.47062719 | Q80: 0 | R80: 16
I81: 75 | J81: 0 | K81: 9.999999999 | L81: 0.0002388230814 | M81: 4.197659552 | N81: -0.8022688003 | O81: 14.19789837 | Q81: 0 | R81: 14
I82: 76 | J82: 0 | K82: 9.82289518 | L82: -3.681020513 | M82: 5.359086157 | N82: -0.6566675868 | O82: 11.50096082 | Q82: 0 | R82: 11
I83: 77 | J83: 0 | K83: 9.297809989 | L83: -6.84529232 | M83: 6.290496676 | N83: -0.4119960145 | O83: 8.743014344 | Q83: 0 | R83: 8
I84: 78 | J84: 0 | K84: 8.443345798 | L84: -9.048164769 | M84: 6.845585731 | N84: -0.09053659845 | O84: 6.24076676 | Q84: 0 | R84: 6
I85: 79 | J85: 0 | K85: 7.289772376 | L85: -9.980251486 | M85: 6.912934771 | N85: 0.2739731376 | O85: 4.222455662 | Q85: 0 | R85: 4
I86: 80 | J86: 0 | K86: 5.877955569 | L86: -9.51064388 | M86: 6.432845717 | N86: 0.6406747687 | O86: 2.800157406 | Q86: 0 | R86: 2
I87: 81 | J87: 0 | K87: 4.257909606 | L87: -7.705296835 | M87: 5.407505107 | N87: 0.9669612535 | O87: 1.960117878 | Q87: 0 | R87: 1
I88: 82 | J88: 0 | K88: 2.487025326 | L88: -4.817765555 | M88: 3.902988176 | N88: 1.214145846 | O88: 1.572247947 | Q88: 1 | R88: 1
I89: 83 | J89: 0 | K89: 0.6280370832 | L89: -1.253594549 | M89: 2.042739525 | N89: 1.352642619 | O89: 1.417182059 | Q89: 1 | R89: 1
I90: 84 | J90: 0 | K90: -1.253199649 | L90: 2.486639792 | M90: -0.006651798291 | N90: 1.365939964 | O90: 1.226788345 | Q90: 1 | R90: 1
I91: 85 | J91: 0 | K91: -3.090041234 | L91: 5.877633547 | M91: -2.055495226 | N91: 1.252815455 | O91: 0.7320970869 | Q91: 1 | R91: 0
I92: 86 | J92: 0 | K92: -4.817416752 | L92: 8.443132515 | M92: -3.914163456 | N92: 1.027484674 | O92: -0.288447693 | Q92: 1 | R92: 0
I93: 87 | J93: 0 | K93: -6.374133167 | L93: 9.822820592 | M93: -5.416248833 | N93: 0.7176639282 | O93: -1.967561408 | Q93: 0 | R93: -1
I94: 88 | J94: 0 | K94: -7.705043118 | L94: 9.822925011 | M94: -6.438582237 | N94: 0.3608168251 | O94: -4.320700344 | Q94: 0 | R94: -4
I95: 89 | J95: 0 | K95: -8.762998534 | L95: 8.443431107 | M95: -6.915421652 | N95: -0.0008930533231 | O95: -7.23498908 | Q95: 0 | R95: -7
I96: 90 | J96: 0 | K96: -9.510520882 | L96: 5.878084375 | M96: -6.844927856 | N96: -0.3262421026 | O96: -10.47736436 | Q96: 0 | R96: -10
I97: 91 | J97: 0 | K97: -9.921128853 | L97: 2.487179539 | M97: -6.287115423 | N97: -0.5803971352 | O97: -13.72106474 | Q97: 0 | R97: -13
I98: 92 | J98: 0 | K98: -9.980276481 | L98: -1.253041689 | M98: -5.353648566 | N98: -0.7394228327 | O98: -16.58696674 | Q98: 0 | R98: -16
I99: 93 | J99: 0 | K99: -9.685868434 | L99: -4.817277229 | M99: -4.190977832 | N99: -0.7932267834 | O99: -18.69412349 | Q99: 0 | R99: -18
I100: 94 | J100: 0 | K100: -9.048334247 | L100: -7.704941627 | M100: -2.959227878 | N100: -0.746543243 | O100: -19.71250375 | Q100: 0 | R100: -19
I101: 95 | J101: 0 | K101: -8.090258848 | L101: -9.510471678 | M101: -1.809820735 | N101: -0.6178328143 | O101: -19.41055126 | Q101: 0 | R101: -19
I102: 96 | J102: 0 | K102: -6.845582479 | L102: -9.980286474 | M102: -0.8649733061 | N102: -0.4362680089 | O102: -17.69084226 | Q102: 0 | R102: -17
I103: 97 | J103: =IF($D$5>0,$B$5*(SIN(2*3.14159*I103/(100/$D$5))+1.1),$B$5) -> 0 | K103: -5.358398346 | L103: -9.048402034 | M103: -0.2019215597 | N103: -0.2372429968 | O103: -14.60872194 | Q103: 0 | R103: -14
I104: 98 | J104: 0 | K104: -3.6813906 | L104: -6.845698539 | M104: 0.1559621511 | N104: -0.0570521105 | O104: -10.37112699 | Q104: 0 | R104: -10
I105: 99 | J105: 0 | K105: -1.873967977 | L105: -3.681538634 | M105: 0.2399806954 | N105: 0.0725030937 | O105: -5.315525915 | Q105: 0 | R105: -5
I106: 100 | J106: 0 | K106: -0.0001592153876 | L106: -0.0003184307752 | M106: 0.1288262479 | N106: 0.1288103263 | O106: 0.1283486017 | Q106: 0 | R106: 0
